Workbook

Sheet LISTAS (hidden)
B2: CÓDIGO | C2: DEPENDENCIA | D2: CONCATENADO | F2: SUJETOS DE CONTROL FISCAL | G2: REGIMEN | H2: DEPENDENCIA | I2: INGRESOS | L2: CONCEPTO | M2: Rango de Calificación | P2: CLASIFICACION PRESUPUESTAL | R2: Sujeto de Control | S2: TIPO DE MATRIZ (Identificación de la matriz a aplicar) | T2: TIPO_ENTIDAD | U2: Columna1 | V2: Columna2 | W2: MACROPROCESO | X2: PUBLICA | Y2: MIXTA>50 | Z2: MIXTA<50 | AA2: CORPORACION
B3: 100000 | C3: DIRECCIÓN SECTOR SALUD | D3: 100000 - DIRECCIÓN SECTOR SALUD | F3: 1 - Fondo de Desarrollo Local de Usaquén | G3: FDL | H3: 12101 - GERENCIA LOCAL USAQUÉN | I3: SI | M3: >= | N3: < | P3: INGRESOS | Q3: ya | R3: 1 - Fondo de Desarrollo Local de Usaquén | S3: PUBLICA SIN GESTIÓN FINANCIERA | T3: PUBLICA con ing | U3: CON INGRESOS | V3: x | W3: GESTIÓN FINANCIERA | X3: 0.35 | Y3: 0.45 | Z3: 0.6 | AA3: 0.6
B4: 110000 | C4: DIRECCIÓN SECTOR GOBIERNO | D4: 110000 - DIRECCIÓN SECTOR GOBIERNO | F4: 10 - Fondo de Desarrollo Local de Engativá | G4: FDL | H4: 12110 - GERENCIA LOCAL ENGATIVÁ | I4: SI | L4: EFICAZ | M4: 0.75 | N4: 1 | P4: GASTOS | R4: 10 - Fondo de Desarrollo Local de Engativá | S4: PUBLICA SIN GESTIÓN FINANCIERA | T4: PUBLICA con ing | U4: CON INGRESOS | W4: GESTIÓN PRESUPUESTAL | X4: 0.25 | Y4: 0.15 | Z4: NO APLICA | AA4: NO APLICA
B5: 12000 | C5: DIRECCIÓN DE PARTICIPACIÓN CIUDADANA Y DESARROLLO LOCAL | D5: 12000 - DIRECCIÓN DE PARTICIPACIÓN CIUDADANA Y DESARROLLO LOCAL | F5: 100 - Concejo de Bogotá D.C. | G5: No tiene | H5: 110000 - DIRECCIÓN SECTOR GOBIERNO | I5: NO | L5: CON OBSERVACIONES | M5: 0.65 | N5: 0.75 | P5: GASTOS DE OPERACIÓN COMERCIAL | R5: 100 - Concejo de Bogotá D.C. | S5: PUBLICA SIN GESTIÓN FINANCIERA Y SIN CONTRATACION | T5: CONCEJO | U5: SIN INGRESOS | W5: Y RESULTADOS | X5: 0.4 | Y5: 0.4 | Z5: 0.4 | AA5: 0.4
B6: 120000 | C6: DIRECCIÓN SECTOR EQUIDAD Y GÉNERO | D6: 120000 - DIRECCIÓN SECTOR EQUIDAD Y GÉNERO | F6: 102 - Personería de Bogotá | G6: 100% publica | H6: 110000 - DIRECCIÓN SECTOR GOBIERNO | I6: NO | L6: INEFICAZ | M6: 0 | N6: 0.65 | P6: RESERVAS CONSTITUIDAS / OBLIGACIONES / CUENTAS POR PAGAR | Q6: ya | R6: 102 - Personería de Bogotá | S6: PUBLICA SIN GESTIÓN FINANCIERA | T6: PUBLICA sin ing | U6: SIN INGRESOS
B7: 12101 | C7: GERENCIA LOCAL USAQUÉN | D7: 12101 - GERENCIA LOCAL USAQUÉN | F7: 104 - Secretaría General de la Alcaldía Mayor de Bogotá, D.C. – SGAMB | G7: 100% publica | H7: 110000 - DIRECCIÓN SECTOR GOBIERNO | I7: NO | L7: ABSTENCIÓN | M7: El Auditor no conto con información o tiene incertidumbre relevante de la información reflejada en los informes presupuestales | P7: PASIVOS EXIGIBLES | R7: 104 - Secretaría General de la Alcaldía Mayor de Bogotá, D.C. – SGAMB | S7: PUBLICA SIN GESTIÓN FINANCIERA | T7: PUBLICA sin ing | U7: SIN INGRESOS | W7: PROCESO | X7: PUBLICA con ing | Y7: PUBLICA sin ing | Z7: PUBLICA | AA7: MIXTA>50 sin Ing | AB7: MIXTA>50 | AC7: MIXTA<50 | AD7: CORPORACION | AE7: CONCEJO | AG7: OPINIONES | AH7: CONCEPTOS INVERSIÓN Y GASTO
B8: 12102 | C8: GERENCIA LOCAL CHAPINERO | D8: 12102 - GERENCIA LOCAL CHAPINERO | F8: 105 - Veeduría Distrital | G8: 100% publica | H8: 110000 - DIRECCIÓN SECTOR GOBIERNO | I8: SI | P8: VIGENCIAS FUTURAS | R8: 105 - Veeduría Distrital | S8: PUBLICA SIN GESTIÓN FINANCIERA | T8: PUBLICA sin ing | U8: SIN INGRESOS | W8: ESTADOS FINANCIEROS | X8: 1 | Y8: 1 | Z8: 0.6 | AA8: 0.4 | AB8: 0.4 | AC8: 0.4 | AD8: 1 | AE8: 1 | AG8: Limpia o Sin Salvedades | AH8: EFECTIVO
B9: 12103 | C9: GERENCIA LOCAL SANTAFÉ | D9: 12103 - GERENCIA LOCAL SANTAFÉ | F9: 11 - Fondo de Desarrollo Local de Suba | G9: FDL | H9: 12111 - GERENCIA LOCAL SUBA | I9: SI | R9: 11 - Fondo de Desarrollo Local de Suba | S9: PUBLICA SIN GESTIÓN FINANCIERA | T9: PUBLICA con ing | U9: CON INGRESOS | W9: DESEMPEÑO FINANCIERO | X9: NO APLICA | Y9: NO APLICA | Z9: 0.4 | AA9: 0.6 | AB9: 0.6 | AC9: 0.6 | AD9: NO APLICA | AE9: NO APLICA | AG9: Con Salvedades | AH9: MODERADAMENTE EFECTIVO
B10: 12104 | C10: GERENCIA LOCAL SAN CRISTÓBAL | D10: 12104 - GERENCIA LOCAL SAN CRISTÓBAL | F10: 110 - Secretaría Distrital de Gobierno – SDG | G10: 100% publica | H10: 110000 - DIRECCIÓN SECTOR GOBIERNO | I10: NO | R10: 110 - Secretaría Distrital de Gobierno – SDG | S10: PUBLICA SIN GESTIÓN FINANCIERA | T10: PUBLICA sin ing | U10: SIN INGRESOS | W10: EJECUCIÓN DE INGRESOS | X10: 0.4 | Y10: NO APLICA | Z10: 0.4 | AA10: NO APLICA | AB10: 0.6 | AC10: NO APLICA | AD10: NO APLICA | AE10: NO APLICA | AG10: Negativa | AH10: INEFECTIVO
B11: 12105 | C11: GERENCIA LOCAL USME | D11: 12105 - GERENCIA LOCAL USME | F11: 111 - Secretaría Distrital de Hacienda – SDH | G11: 100% publica | H11: 150000 - DIRECCIÓN SECTOR HACIENDA | I11: SI | Q11: 311 - Terminal de Transporte S.A. | R11: 111 - Secretaría Distrital de Hacienda – SDH | S11: PUBLICA CON GESTIÓN FINANCIERA | T11: PUBLICA | U11: CON INGRESOS | W11: EJECUCIÓN DE GASTOS o COSTOS Y GASTOS | X11: 0.6 | Y11: 1 | Z11: 0.6 | AA11: 1 | AB11: 0.4 | AC11: NO APLICA | AD11: 1 | AE11: 1 | AG11: Abstención
B12: 12106 | C12: GERENCIA LOCAL TUNJUELLTO | D12: 12106 - GERENCIA LOCAL TUNJUELLTO | F12: 112 - Secretaría de Educación del Distrito – SED - Fondos de Servicios Educativos de los Colegios e Instituciones adscritas a la Secretaría de Educación del Distrito | G12: 100% publica | H12: 140000 - DIRECCIÓN SECTOR EDUCACIÓN | I12: NO | R12: 112 - Secretaría de Educación del Distrito – SED - Fondos de Servicios Educativos de los Colegios e Instituciones adscritas a la Secretaría de Educación del Distrito | S12: PUBLICA SIN GESTIÓN FINANCIERA | T12: PUBLICA | U12: CON INGRESOS | W12: PLANEACIÓN Y RESULTADOS | X12: 0.4 | Y12: 0.4 | Z12: 0.4 | AA12: 0.3 | AB12: 0.3 | AC12: 0.3 | AD12: 0.3 | AE12: NO APLICA | AG12: NO APLICA
B13: 12107 | C13: GERENCIA LOCAL BOSA | D13: 12107 - GERENCIA LOCAL BOSA | F13: 113 - Secretaría Distrital de Movilidad – SDM | G13: 100% publica | H13: 80000 - DIRECCIÓN SECTOR MOVILIDAD | I13: SI | R13: 113 - Secretaría Distrital de Movilidad – SDM | S13: PUBLICA SIN GESTIÓN FINANCIERA | T13: PUBLICA | U13: CON INGRESOS | W13: PLANEACIÓN Y RESULTADOS | X13: 0.4 | Y13: 0.4 | Z13: 0.4 | AA13: 0.3 | AB13: 0.3 | AC13: 0.3 | AD13: 0.3 | AE13: NO APLICA
B14: 12108 | C14: GERENCIA LOCAL KENNEDY | D14: 12108 - GERENCIA LOCAL KENNEDY | F14: 114 - Secretaría Distrital de Salud – SDS | G14: 100% publica | H14: 100000 - DIRECCIÓN SECTOR SALUD | I14: NO | R14: 114 - Secretaría Distrital de Salud – SDS | S14: PUBLICA SIN GESTIÓN FINANCIERA | T14: PUBLICA | U14: CON INGRESOS | W14: PLANEACIÓN Y RESULTADOS | X14: 0.4 | Y14: 0.4 | Z14: 0.4 | AA14: 0.3 | AB14: 0.3 | AC14: 0.3 | AD14: 0.3 | AE14: NO APLICA
B15: 12109 | C15: GERENCIA LOCAL FONTIBÓN | D15: 12109 - GERENCIA LOCAL FONTIBÓN | F15: 117 - Secretaría Distrital de Desarrollo Económico – SDDE | G15: 100% publica | H15: 190000 - DIRECCIÓN SECTOR DESARROLLO ECONÓMICO, INDUSTRIA Y TURISMO | I15: NO | R15: 117 - Secretaría Distrital de Desarrollo Económico – SDDE | S15: PUBLICA SIN GESTIÓN FINANCIERA | T15: PUBLICA | U15: CON INGRESOS | W15: GESTIÓN CONTRACTUAL | X15: 0.6 | Y15: 0.6 | Z15: 0.6 | AA15: 0.7 | AB15: 0.7 | AC15: 0.7 | AD15: 0.7 | AE15: NO APLICA
B16: 12110 | C16: GERENCIA LOCAL ENGATIVÁ | D16: 12110 - GERENCIA LOCAL ENGATIVÁ | F16: 118 - Secretaría Distrital del Hábitat - SDHT | G16: 100% publica | H16: 130000 - DIRECCIÓN SECTOR HÁBITAT Y AMBIENTE | I16: NO | R16: 118 - Secretaría Distrital del Hábitat - SDHT | S16: PUBLICA SIN GESTIÓN FINANCIERA | T16: PUBLICA | U16: CON INGRESOS
B17: 12111 | C17: GERENCIA LOCAL SUBA | D17: 12111 - GERENCIA LOCAL SUBA | F17: 119 - Secretaría Distrital de Cultura, Recreación y Deporte – SDCRD | G17: 100% publica | H17: 220000 - DIRECCIÓN SECTOR CULTURA, RECREACIÓN Y DEPORTE | I17: SI | R17: 119 - Secretaría Distrital de Cultura, Recreación y Deporte – SDCRD | S17: PUBLICA CON GESTIÓN FINANCIERA | T17: PUBLICA | U17: CON INGRESOS
B18: 12112 | C18: GERENCIA LOCAL BARRIOS UNIDOS | D18: 12112 - GERENCIA LOCAL BARRIOS UNIDOS | F18: 12 - Fondo de Desarrollo Local de Barrios Unidos | G18: FDL | H18: 12112 - GERENCIA LOCAL BARRIOS UNIDOS | I18: SI | Q18: =VLOOKUP($Q$11,TablaSujetos2[],3,TRUE) -> MIXTA>50 sin ing | R18: 12 - Fondo de Desarrollo Local de Barrios Unidos | S18: PUBLICA SIN GESTIÓN FINANCIERA | T18: PUBLICA con ing | U18: CON INGRESOS
B19: 12113 | C19: GERENCIA LOCAL TEUSAQUILLO | D19: 12113 - GERENCIA LOCAL TEUSAQUILLO | F19: 120 - Secretaría Distrital de Planeación – SDP | G19: 100% publica | H19: 130000 - DIRECCIÓN SECTOR HÁBITAT Y AMBIENTE | I19: NO | R19: 120 - Secretaría Distrital de Planeación – SDP | S19: PUBLICA SIN GESTIÓN FINANCIERA | T19: PUBLICA con ing | U19: CON INGRESOS
B20: 12114 | C20: GERENCIA LOCAL MÁRTIRES | D20: 12114 - GERENCIA LOCAL MÁRTIRES | F20: 121 - Secretaría Distrital de la Mujer – SDM | G20: 100% publica | H20: 120000 - DIRECCIÓN SECTOR EQUIDAD Y GÉNERO | I20: NO | R20: 121 - Secretaría Distrital de la Mujer – SDM | S20: PUBLICA SIN GESTIÓN FINANCIERA | T20: PUBLICA sin ing | U20: SIN INGRESOS
B21: 12115 | C21: GERENCIA LOCAL ANTONIO NARIÑO | D21: 12115 - GERENCIA LOCAL ANTONIO NARIÑO | F21: 122 - Secretaría Distrital de Integración Social – SDIS | G21: 100% publica | H21: 200000 - DIRECCIÓN SECTOR INTEGRACIÓN SOCIAL | I21: NO | R21: 122 - Secretaría Distrital de Integración Social – SDIS | S21: PUBLICA SIN GESTIÓN FINANCIERA | T21: PUBLICA sin ing | U21: SIN INGRESOS
B22: 12116 | C22: GERENCIA LOCAL PUENTE ARANDA | D22: 12116 - GERENCIA LOCAL PUENTE ARANDA | F22: 125 - Departamento Administrativo del Servicio Civil Distrital – DASCD | G22: 100% publica | H22: 110000 - DIRECCIÓN SECTOR GOBIERNO | I22: NO | R22: 125 - Departamento Administrativo del Servicio Civil Distrital – DASCD | S22: PUBLICA SIN GESTIÓN FINANCIERA | T22: PUBLICA sin ing | U22: SIN INGRESOS
B23: 12117 | C23: GERENCIA LOCAL LA CANDELARIA | D23: 12117 - GERENCIA LOCAL LA CANDELARIA | F23: 126 - Secretaría Distrital de Ambiente – SDA | G23: 100% publica | H23: 130000 - DIRECCIÓN SECTOR HÁBITAT Y AMBIENTE | I23: NO | R23: 126 - Secretaría Distrital de Ambiente – SDA | S23: PUBLICA SIN GESTIÓN FINANCIERA | T23: PUBLICA con ing | U23: CON INGRESOS
B24: 12118 | C24: GERENCIA LOCAL RAFAEL URIBE URIBE | D24: 12118 - GERENCIA LOCAL RAFAEL URIBE URIBE | F24: 127 - Departamento Administrativo de la Defensoría del Espacio Público – DADEP | G24: 100% publica | H24: 110000 - DIRECCIÓN SECTOR GOBIERNO | I24: NO | R24: 127 - Departamento Administrativo de la Defensoría del Espacio Público – DADEP | S24: PUBLICA SIN GESTIÓN FINANCIERA | T24: PUBLICA sin ing | U24: SIN INGRESOS
B25: 12119 | C25: GERENCIA LOCAL CIUDAD BOLIVAR | D25: 12119 - GERENCIA LOCAL CIUDAD BOLIVAR | F25: 13 - Fondo de Desarrollo Local de Teusaquillo | G25: FDL | H25: 12113 - GERENCIA LOCAL TEUSAQUILLO | I25: SI | R25: 13 - Fondo de Desarrollo Local de Teusaquillo | S25: PUBLICA SIN GESTIÓN FINANCIERA | T25: PUBLICA con ing | U25: CON INGRESOS
B26: 12120 | C26: GERENCIA LOCAL SUMAPAZ | D26: 12120 - GERENCIA LOCAL SUMAPAZ | F26: 131 - Unidad Administrativa Especial del Cuerpo Oficial de Bomberos de Bogotá – UAECOB | G26: Unidad Administrativa Especial | H26: 230000 - DIRECCIÓN SECTOR SEGURIDAD, CONVIVENCIA Y JUSTICIA | I26: NO | R26: 131 - Unidad Administrativa Especial del Cuerpo Oficial de Bomberos de Bogotá – UAECOB | S26: PUBLICA SIN GESTIÓN FINANCIERA | T26: PUBLICA con ing | U26: CON INGRESOS
B27: 130000 | C27: DIRECCIÓN SECTOR HÁBITAT Y AMBIENTE | D27: 130000 - DIRECCIÓN SECTOR HÁBITAT Y AMBIENTE | F27: 136 - Secretaría Jurídica Distrital – SJD | G27: 100% publica | H27: 90000 - DIRECCIÓN SECTOR GESTIÓN JURIDICA | I27: NO | R27: 136 - Secretaría Jurídica Distrital – SJD | S27: PUBLICA SIN GESTIÓN FINANCIERA | T27: PUBLICA con ing | U27: CON INGRESOS
B28: 140000 | C28: DIRECCIÓN SECTOR EDUCACIÓN | D28: 140000 - DIRECCIÓN SECTOR EDUCACIÓN | F28: 137 - Secretaría Distrital de Seguridad, Convivencia y Justicia – SDSCJ | G28: 100% publica | H28: 230000 - DIRECCIÓN SECTOR SEGURIDAD, CONVIVENCIA Y JUSTICIA | I28: NO | R28: 137 - Secretaría Distrital de Seguridad, Convivencia y Justicia – SDSCJ | S28: PUBLICA SIN GESTIÓN FINANCIERA | T28: PUBLICA con ing | U28: CON INGRESOS
B29: 150000 | C29: DIRECCIÓN SECTOR HACIENDA | D29: 150000 - DIRECCIÓN SECTOR HACIENDA | F29: 14 - Fondo de Desarrollo Local de Los Mártires | G29: FDL | H29: 12114 - GERENCIA LOCAL MÁRTIRES | I29: SI | R29: 14 - Fondo de Desarrollo Local de Los Mártires | S29: PUBLICA SIN GESTIÓN FINANCIERA | T29: PUBLICA con ing | U29: CON INGRESOS | W29: PLANES, PROGRAMAS Y PROYECTOS
B30: 190000 | C30: DIRECCIÓN SECTOR DESARROLLO ECONÓMICO, INDUSTRIA Y TURISMO | D30: 190000 - DIRECCIÓN SECTOR DESARROLLO ECONÓMICO, INDUSTRIA Y TURISMO | F30: 15 - Fondo de Desarrollo Local de Antonio Nariño | G30: FDL | H30: 12115 - GERENCIA LOCAL ANTONIO NARIÑO | I30: SI | R30: 15 - Fondo de Desarrollo Local de Antonio Nariño | S30: PUBLICA SIN GESTIÓN FINANCIERA | T30: PUBLICA con ing | U30: CON INGRESOS | W30: PLAN ESTRATEGICO INSTITUCIONAL
B31: 200000 | C31: DIRECCIÓN SECTOR INTEGRACIÓN SOCIAL | D31: 200000 - DIRECCIÓN SECTOR INTEGRACIÓN SOCIAL | F31: 16 - Fondo de Desarrollo Local de Puente Aranda | G31: FDL | H31: 12116 - GERENCIA LOCAL PUENTE ARANDA | I31: SI | R31: 16 - Fondo de Desarrollo Local de Puente Aranda | S31: PUBLICA SIN GESTIÓN FINANCIERA | T31: PUBLICA con ing | U31: CON INGRESOS | W31: PLAN ESTRATEGICO CORPORATIVO o el que haga sus veces
B32: 210000 | C32: DIRECCIÓN SECTOR SERVICIOS PÚBLICOS | D32: 210000 - DIRECCIÓN SECTOR SERVICIOS PÚBLICOS | F32: 17 - Fondo de Desarrollo Local de La Candelaria | G32: FDL | H32: 12117 - GERENCIA LOCAL LA CANDELARIA | I32: SI | R32: 17 - Fondo de Desarrollo Local de La Candelaria | S32: PUBLICA SIN GESTIÓN FINANCIERA | T32: PUBLICA con ing | U32: CON INGRESOS
B33: 220000 | C33: DIRECCIÓN SECTOR CULTURA, RECREACIÓN Y DEPORTE | D33: 220000 - DIRECCIÓN SECTOR CULTURA, RECREACIÓN Y DEPORTE | F33: 18 - Fondo de Desarrollo Local de Rafael Uribe Uribe | G33: FDL | H33: 12118 - GERENCIA LOCAL RAFAEL URIBE URIBE | I33: SI | R33: 18 - Fondo de Desarrollo Local de Rafael Uribe Uribe | S33: PUBLICA SIN GESTIÓN FINANCIERA | T33: PUBLICA con ing | U33: CON INGRESOS
B34: 230000 | C34: DIRECCIÓN SECTOR SEGURIDAD, CONVIVENCIA Y JUSTICIA | D34: 230000 - DIRECCIÓN SECTOR SEGURIDAD, CONVIVENCIA Y JUSTICIA | F34: 19 - Fondo de Desarrollo Local de Ciudad Bolívar | G34: FDL | H34: 12119 - GERENCIA LOCAL CIUDAD BOLIVAR | I34: SI | R34: 19 - Fondo de Desarrollo Local de Ciudad Bolívar | S34: PUBLICA SIN GESTIÓN FINANCIERA | T34: PUBLICA con ing | U34: CON INGRESOS
B35: 80000 | C35: DIRECCIÓN SECTOR MOVILIDAD | D35: 80000 - DIRECCIÓN SECTOR MOVILIDAD | F35: 2 - Fondo de Desarrollo Local de Chapinero | G35: FDL | H35: 12102 - GERENCIA LOCAL CHAPINERO | I35: SI | R35: 2 - Fondo de Desarrollo Local de Chapinero | S35: PUBLICA SIN GESTIÓN FINANCIERA | T35: PUBLICA con ing | U35: CON INGRESOS
B36: 90000 | C36: DIRECCIÓN SECTOR GESTIÓN JURIDICA | D36: 90000 - DIRECCIÓN SECTOR GESTIÓN JURIDICA | F36: 20 - Fondo de Desarrollo Local de Sumapaz | G36: FDL | H36: 12120 - GERENCIA LOCAL SUMAPAZ | I36: SI | R36: 20 - Fondo de Desarrollo Local de Sumapaz | S36: PUBLICA SIN GESTIÓN FINANCIERA | T36: PUBLICA con ing | U36: CON INGRESOS
F37: 200 - Instituto para la Economía Social – IPES | G37: Establecimiento publico | H37: 190000 - DIRECCIÓN SECTOR DESARROLLO ECONÓMICO, INDUSTRIA Y TURISMO | I37: NO | J37: SI | R37: 200 - Instituto para la Economía Social – IPES | S37: PUBLICA CON GESTIÓN FINANCIERA | T37: PUBLICA | U37: CON INGRESOS
F38: 201 - Fondo Financiero Distrital de Salud – FFDS | G38: Fondo | H38: 100000 - DIRECCIÓN SECTOR SALUD | I38: NO | J38: SI | R38: 201 - Fondo Financiero Distrital de Salud – FFDS | S38: PUBLICA CON GESTIÓN FINANCIERA | T38: PUBLICA | U38: CON INGRESOS
F39: 202 - Curaduría Urbana N° 1 de Bogotá | G39: Mixta | H39: 130000 - DIRECCIÓN SECTOR HÁBITAT Y AMBIENTE | I39: SI | R39: 203 - Instituto Distrital de Gestión de Riesgos y Cambio Climático – IDIGER | S39: PUBLICA SIN GESTIÓN FINANCIERA | T39: PUBLICA con ing | U39: CON INGRESOS
F40: 203 - Instituto Distrital de Gestión de Riesgos y Cambio Climático – IDIGER | G40: 100% publica | H40: 130000 - DIRECCIÓN SECTOR HÁBITAT Y AMBIENTE | I40: NO | J40: SI | R40: 204 - Instituto de Desarrollo Urbano – IDU | S40: PUBLICA CON GESTIÓN FINANCIERA | T40: PUBLICA | U40: CON INGRESOS
F41: 204 - Instituto de Desarrollo Urbano – IDU | G41: Establecimiento publico | H41: 80000 - DIRECCIÓN SECTOR MOVILIDAD | I41: SI | J41: SI | R41: 206 - Fondo de Prestaciones Económicas, Cesantías y Pensiones – FONCEP | S41: PUBLICA CON GESTIÓN FINANCIERA | T41: PUBLICA | U41: CON INGRESOS
F42: 205 - Curaduría Urbana N° 2 de Bogotá | G42: Menor 50% | H42: 130000 - DIRECCIÓN SECTOR HÁBITAT Y AMBIENTE | I42: SI | R42: 208 - Caja de Vivienda Popular – CVP | S42: PUBLICA CON GESTIÓN FINANCIERA | T42: PUBLICA | U42: CON INGRESOS
F43: 206 - Fondo de Prestaciones Económicas, Cesantías y Pensiones – FONCEP | G43: Fondo | H43: 150000 - DIRECCIÓN SECTOR HACIENDA | I43: SI | R43: 211 - Instituto Distrital de Recreación y Deporte – IDRD | S43: PUBLICA CON GESTIÓN FINANCIERA | T43: PUBLICA | U43: CON INGRESOS
F44: 207 - Curaduría Urbana N° 4 de Bogotá | G44: Menor 50% | H44: 130000 - DIRECCIÓN SECTOR HÁBITAT Y AMBIENTE | I44: SI | R44: 213 - Instituto Distrital de Patrimonio Cultural – IDPC | S44: PUBLICA CON GESTIÓN FINANCIERA | T44: PUBLICA | U44: CON INGRESOS
F45: 208 - Caja de Vivienda Popular – CVP | G45: Establecimiento publico | H45: 130000 - DIRECCIÓN SECTOR HÁBITAT Y AMBIENTE | I45: SI | J45: SI | R45: 214 - Instituto Distrital para la Protección de la Niñez y la Juventud – IDIPRON | S45: PUBLICA CON GESTIÓN FINANCIERA | T45: PUBLICA | U45: CON INGRESOS
F46: 209 - Curaduría Urbana N° 3 de Bogotá | G46: Menor 50% | H46: 130000 - DIRECCIÓN SECTOR HÁBITAT Y AMBIENTE | I46: SI | R46: 215 - Fundación Gilberto Álzate Avendaño – FUGA | S46: PUBLICA CON GESTIÓN FINANCIERA | T46: PUBLICA | U46: CON INGRESOS
F47: 210 - Curaduría Urbana N° 5 de Bogotá | G47: Menor 50% | H47: 130000 - DIRECCIÓN SECTOR HÁBITAT Y AMBIENTE | I47: SI | R47: 216 - Orquesta Filarmónica de Bogotá – OFB | S47: PUBLICA CON GESTIÓN FINANCIERA | T47: PUBLICA | U47: CON INGRESOS
F48: 211 - Instituto Distrital de Recreación y Deporte – IDRD | G48: Establecimiento publico | H48: 220000 - DIRECCIÓN SECTOR CULTURA, RECREACIÓN Y DEPORTE | I48: NO | J48: SI | R48: 218 - Jardín Botánico José Celestino Mutis – JBJCM | S48: PUBLICA SIN GESTIÓN FINANCIERA | T48: PUBLICA | U48: CON INGRESOS
F49: 213 - Instituto Distrital de Patrimonio Cultural – IDPC | G49: Establecimiento publico | H49: 220000 - DIRECCIÓN SECTOR CULTURA, RECREACIÓN Y DEPORTE | I49: NO | J49: SI | R49: 219 - Instituto para la Investigación Educativa y el Desarrollo Pedagógico – IDEP | S49: PUBLICA CON GESTIÓN FINANCIERA | T49: PUBLICA | U49: CON INGRESOS
F50: 214 - Instituto Distrital para la Protección de la Niñez y la Juventud – IDIPRON | G50: Establecimiento publico | H50: 200000 - DIRECCIÓN SECTOR INTEGRACIÓN SOCIAL | I50: NO | J50: SI | R50: 220 - Instituto Distrital de la Participación y Acción Comunal – IDPAC | S50: PUBLICA CON GESTIÓN FINANCIERA | T50: PUBLICA | U50: CON INGRESOS
F51: 215 - Fundación Gilberto Álzate Avendaño – FUGA | G51: Establecimiento publico | H51: 220000 - DIRECCIÓN SECTOR CULTURA, RECREACIÓN Y DEPORTE | I51: SI | J51: SI | R51: 221 - Instituto Distrital de Turismo – IDT | S51: PUBLICA CON GESTIÓN FINANCIERA | T51: PUBLICA | U51: CON INGRESOS
F52: 216 - Orquesta Filarmónica de Bogotá – OFB | G52: Establecimiento publico | H52: 220000 - DIRECCIÓN SECTOR CULTURA, RECREACIÓN Y DEPORTE | I52: NO | J52: SI | R52: 222 - Instituto Distrital de las Artes – IDARTES | S52: PUBLICA CON GESTIÓN FINANCIERA | T52: PUBLICA | U52: CON INGRESOS
F53: 218 - Jardín Botánico José Celestino Mutis – JBJCM | G53: Establecimiento publico | H53: 130000 - DIRECCIÓN SECTOR HÁBITAT Y AMBIENTE | I53: SI | J53: SI | R53: 226 - Unidad Administrativa Especial de Catastro Distrital - UAECD | S53: PUBLICA CON GESTIÓN FINANCIERA | T53: PUBLICA | U53: CON INGRESOS
F54: 219 - Instituto para la Investigación Educativa y el Desarrollo Pedagógico – IDEP | G54: Establecimiento publico | H54: 140000 - DIRECCIÓN SECTOR EDUCACIÓN | I54: NO | J54: SI | R54: 227 - Unidad Administrativa Especial de Rehabilitación y Mantenimiento Vial – UAERMV. | S54: PUBLICA CON GESTIÓN FINANCIERA | T54: PUBLICA | U54: CON INGRESOS
F55: 220 - Instituto Distrital de la Participación y Acción Comunal – IDPAC | G55: Establecimiento publico | H55: 110000 - DIRECCIÓN SECTOR GOBIERNO | I55: NO | R55: 228 - Unidad Administrativa Especial de Servicios Públicos - UAESP | S55: PUBLICA CON GESTIÓN FINANCIERA | T55: PUBLICA | U55: CON INGRESOS
F56: 221 - Instituto Distrital de Turismo – IDT | G56: Establecimiento publico | H56: 190000 - DIRECCIÓN SECTOR DESARROLLO ECONÓMICO, INDUSTRIA Y TURISMO | I56: NO | R56: 229 - Instituto Distrital de Protección y Bienestar Animal – IDPYBA | S56: PUBLICA CON GESTIÓN FINANCIERA | T56: PUBLICA | U56: CON INGRESOS
F57: 222 - Instituto Distrital de las Artes – IDARTES | G57: Establecimiento publico | H57: 220000 - DIRECCIÓN SECTOR CULTURA, RECREACIÓN Y DEPORTE | I57: NO | J57: SI | R57: 230 - Universidad Distrital Francisco José de Caldas | S57: PUBLICA CON GESTIÓN FINANCIERA | T57: PUBLICA | U57: CON INGRESOS
F58: 226 - Unidad Administrativa Especial de Catastro Distrital - UAECD | G58: Unidad Administrativa Especial | H58: 150000 - DIRECCIÓN SECTOR HACIENDA | I58: NO | J58: SI | R58: 240 - Lotería de Bogotá | S58: PUBLICA CON GESTIÓN FINANCIERA Y CONTRATACIÓN MIXTA | T58: PUBLICA | U58: CON INGRESOS
F59: 227 - Unidad Administrativa Especial de Rehabilitación y Mantenimiento Vial – UAERMV. | G59: Unidad Administrativa Especial | H59: 80000 - DIRECCIÓN SECTOR MOVILIDAD | I59: NO | J59: SI | R59: 260 - Canal Capital | S59: PUBLICA CON GESTIÓN FINANCIERA | T59: PUBLICA | U59: CON INGRESOS
F60: 228 - Unidad Administrativa Especial de Servicios Públicos - UAESP | G60: Unidad Administrativa Especial | H60: 210000 - DIRECCIÓN SECTOR SERVICIOS PÚBLICOS | I60: NO | R60: 262 - Empresa de Transporte del Tercer Milenio - Transmilenio S.A. | S60: PUBLICA CON GESTIÓN FINANCIERA | T60: PUBLICA | U60: CON INGRESOS
F61: 229 - Instituto Distrital de Protección y Bienestar Animal – IDPYBA | G61: Establecimiento publico | H61: 130000 - DIRECCIÓN SECTOR HÁBITAT Y AMBIENTE | I61: NO | J61: SI | R61: 263 - Empresa de Renovación y Desarrollo Urbano de Bogotá D.C. – ERU. | S61: PUBLICA CON GESTIÓN FINANCIERA | T61: PUBLICA | U61: CON INGRESOS
F62: 230 - Universidad Distrital Francisco José de Caldas | G62: Ente Autonomo | H62: 140000 - DIRECCIÓN SECTOR EDUCACIÓN | I62: SI | J62: SI | R62: 264 - Aguas de Bogotá S.A. E.S.P. | S62: PUBLICA CON GESTIÓN FINANCIERA Y CONTRATACIÓN MIXTA | T62: PUBLICA | U62: CON INGRESOS
F63: 240 - Lotería de Bogotá | G63: Empresa Industrial y Comercial | H63: 150000 - DIRECCIÓN SECTOR HACIENDA | I63: SI | R63: 265 - Empresa de Acueducto y Alcantarillado de Bogotá, EAAB -E.S.P. | S63: PUBLICA CON GESTIÓN FINANCIERA Y CONTRATACIÓN MIXTA | T63: PUBLICA | U63: CON INGRESOS
F64: 260 - Canal Capital | G64: Empresa Industrial y Comercial | H64: 220000 - DIRECCIÓN SECTOR CULTURA, RECREACIÓN Y DEPORTE | I64: SI | R64: 266 - Metro de Bogotá S.A. | S64: PUBLICA CON GESTIÓN FINANCIERA | T64: PUBLICA | U64: CON INGRESOS
F65: 262 - Empresa de Transporte del Tercer Milenio - Transmilenio S.A. | G65: Empresa Industrial y Comercial | H65: 80000 - DIRECCIÓN SECTOR MOVILIDAD | I65: SI | R65: 268 - Operadora Distrital de Transporte S.A.S. | S65: PUBLICA CON GESTIÓN FINANCIERA Y CONTRATACIÓN MIXTA | T65: PUBLICA sin ing | U65: SIN INGRESOS
F66: 263 - Empresa de Renovación y Desarrollo Urbano de Bogotá D.C. – ERU. | G66: Empresa Industrial y Comercial | H66: 130000 - DIRECCIÓN SECTOR HÁBITAT Y AMBIENTE | I66: SI | R66: 269 - Agencia de Analítica de Datos SAS - AGATA | S66: MIXTA | T66: MIXTA>50 sin ing | U66: SIN INGRESOS
F67: 264 - Aguas de Bogotá S.A. E.S.P. | G67: Mixta | H67: 210000 - DIRECCIÓN SECTOR SERVICIOS PÚBLICOS | I67: SI | R67: 3 - Fondo de Desarrollo Local de Santa Fe | S67: PUBLICA SIN GESTIÓN FINANCIERA | T67: PUBLICA con ing | U67: CON INGRESOS
F68: 265 - Empresa de Acueducto y Alcantarillado de Bogotá, EAAB -E.S.P. | G68: Empresa Industrial y Comercial | H68: 210000 - DIRECCIÓN SECTOR SERVICIOS PÚBLICOS | I68: SI | R68: 311 - Terminal de Transporte S.A. | S68: MIXTA | T68: MIXTA>50 sin ing | U68: SIN INGRESOS
F69: 266 - Metro de Bogotá S.A. | G69: Empresa Industrial y Comercial | H69: 80000 - DIRECCIÓN SECTOR MOVILIDAD | I69: SI | R69: 317 - Corporación para el Desarrollo y la Productividad Bogotá Región - INVEST IN BOGOTÁ. | S69: MIXTA | T69: CORPORACION | U69: SIN INGRESOS
F70: 268 - Operadora Distrital de Transporte S.A.S. | G70: Publica con contratacion mixta | H70: 80000 - DIRECCIÓN SECTOR MOVILIDAD | I70: SI | R70: 4 - Fondo de Desarrollo Local de San Cristóbal | S70: PUBLICA SIN GESTIÓN FINANCIERA | T70: PUBLICA con ing | U70: CON INGRESOS
F71: 269 - Agencia de Analítica de Datos SAS - AGATA | G71: Entidad Descentralizada | H71: 210000 - DIRECCIÓN SECTOR SERVICIOS PÚBLICOS | I71: SI | R71: 423 - Subred Integrada de Servicios de Salud Centro Oriente E.S.E. | S71: PUBLICA CON PLAN ESTRATEGICO Y CONTRATACIÓN MIXTA | T71: PUBLICA | U71: CON INGRESOS
F72: 3 - Fondo de Desarrollo Local de Santa Fe | G72: FDL | H72: 12103 - GERENCIA LOCAL SANTAFÉ | I72: SI | R72: 424 - Subred Integrada de Servicios de Salud Sur Occidente E.S.E. | S72: PUBLICA CON PLAN ESTRATEGICO Y CONTRATACIÓN MIXTA | T72: PUBLICA | U72: CON INGRESOS
F73: 311 - Terminal de Transporte S.A. | G73: Empresa Industrial y Comercial | H73: 80000 - DIRECCIÓN SECTOR MOVILIDAD | I73: SI | R73: 425 - Subred Integrada de Servicios de Salud Sur E.S.E. | S73: PUBLICA CON PLAN ESTRATEGICO Y CONTRATACIÓN MIXTA | T73: PUBLICA | U73: CON INGRESOS
F74: 317 - Corporación para el Desarrollo y la Productividad Bogotá Región - INVEST IN BOGOTÁ. | G74: Menor 50% | H74: 190000 - DIRECCIÓN SECTOR DESARROLLO ECONÓMICO, INDUSTRIA Y TURISMO | I74: SI | R74: 426 - Subred Integrada de Servicios de Salud Norte E.S.E. | S74: PUBLICA CON PLAN ESTRATEGICO Y CONTRATACIÓN MIXTA | T74: PUBLICA | U74: CON INGRESOS
F75: 4 - Fondo de Desarrollo Local de San Cristóbal | G75: FDL | H75: 12104 - GERENCIA LOCAL SAN CRISTÓBAL | I75: SI | R75: 428 - Capital Salud. Entidad promotora de salud del régimen subsidiado S.A.S. - CAPITAL SALUD EPS-S S.A.S. | S75: MIXTA | T75: MIXTA>50 | U75: CON INGRESOS
F76: 423 - Subred Integrada de Servicios de Salud Centro Oriente E.S.E. | G76: Subred | H76: 100000 - DIRECCIÓN SECTOR SALUD | I76: SI | R76: 429 - Instituto Distrital de Ciencia, Biotecnología e Innovación en Salud – IDCBIS | S76: PUBLICA CON GESTIÓN FINANCIERA CON PLAN ESTRATEGICO | T76: PUBLICA sin ing | U76: SIN INGRESOS
F77: 424 - Subred Integrada de Servicios de Salud Sur Occidente E.S.E. | G77: Subred | H77: 100000 - DIRECCIÓN SECTOR SALUD | I77: SI | R77: 430 - Entidad de Gestión Administrativa y Técnica – EGAT | S77: PUBLICA SIN GESTIÓN FINANCIERA Y CONTRATACIÓN MIXTA | T77: PUBLICA sin ing | U77: SIN INGRESOS
F78: 425 - Subred Integrada de Servicios de Salud Sur E.S.E. | G78: Subred | H78: 100000 - DIRECCIÓN SECTOR SALUD | I78: SI | R78: 431 - ENEL Colombia S.A. E.S.P. | S78: MIXTA | T78: MIXTA<50 | U78: SIN INGRESOS
F79: 426 - Subred Integrada de Servicios de Salud Norte E.S.E. | G79: Subred | H79: 100000 - DIRECCIÓN SECTOR SALUD | I79: SI | R79: 5 - Fondo de Desarrollo Local de Usme | S79: PUBLICA SIN GESTIÓN FINANCIERA | T79: PUBLICA con ing | U79: CON INGRESOS
F80: 428 - Capital Salud. Entidad promotora de salud del régimen subsidiado S.A.S. - CAPITAL SALUD EPS-S S.A.S. | G80: Publica con contratacion mixta | H80: 100000 - DIRECCIÓN SECTOR SALUD | I80: SI | R80: 500 - Fondo Distrital para la Gestión de Riesgos y Cambio Climático de Bogotá D.C. –FONDIGER | S80: PUBLICA CON GESTIÓN FINANCIERA | T80: PUBLICA sin ing | U80: SIN INGRESOS
F81: 429 - Instituto Distrital de Ciencia, Biotecnología e Innovación en Salud – IDCBIS | G81: Establecimiento publico | H81: 100000 - DIRECCIÓN SECTOR SALUD | I81: SI | R81: 501 -Agencia Distrital para la Educación Superior, la Ciencia y la Tecnología - ATENEA | S81: PUBLICA SIN GESTIÓN FINANCIERA | T81: PUBLICA con ing | U81: CON INGRESOS
F82: 430 - Entidad de Gestión Administrativa y Técnica – EGAT | G82: Publica con contratacion mixta | H82: 100000 - DIRECCIÓN SECTOR SALUD | I82: NO | R82: 515 - Corporación Maloka de Ciencia, Tecnología e Innovación – MALOKA | S82: MIXTA | T82: CORPORACION | U82: SIN INGRESOS
F83: 431 - ENEL Colombia S.A. E.S.P. | G83: Mixta | H83: 210000 - DIRECCIÓN SECTOR SERVICIOS PÚBLICOS | I83: SI | R83: 6 - Fondo de Desarrollo Local de Tunjuelito | S83: PUBLICA SIN GESTIÓN FINANCIERA | T83: PUBLICA con ing | U83: CON INGRESOS
F84: 5 - Fondo de Desarrollo Local de Usme | G84: FDL | H84: 12105 - GERENCIA LOCAL USME | I84: SI | R84: 7 - Fondo de Desarrollo Local de Bosa | S84: PUBLICA SIN GESTIÓN FINANCIERA | T84: PUBLICA con ing | U84: CON INGRESOS
F85: 500 - Fondo Distrital para la Gestión de Riesgos y Cambio Climático de Bogotá D.C. –FONDIGER | G85: Fondo | H85: 130000 - DIRECCIÓN SECTOR HÁBITAT Y AMBIENTE | I85: NO | R85: 702 - Compañía de Distribución y Comercialización de Energía S.A. E.S.P. CODENSA S.A. E.S.P. | S85: MIXTA | T85: MIXTA<50 | U85: SIN INGRESOS
F86: 501 -Agencia Distrital para la Educación Superior, la Ciencia y la Tecnología - ATENEA | G86: 100% publica | H86: 140000 - DIRECCIÓN SECTOR EDUCACIÓN | I86: NO | R86: 704 - Compañía Colombiana de Servicios de Valor Agregado y Telemático S.A. ESP - COLVATEL S.A E.S.P. | S86: MIXTA | T86: MIXTA>50 sin ing | U86: SIN INGRESOS
F87: 515 - Corporación Maloka de Ciencia, Tecnología e Innovación – MALOKA | G87: Menor 50% | H87: 150000 - DIRECCIÓN SECTOR HACIENDA | I87: SI | R87: 705 - Empresa Generadora de Energía S.A. E.S.P. - EMGESA S.A. E.S.P. | S87: MIXTA | T87: MIXTA<50 | U87: SIN INGRESOS
F88: 6 - Fondo de Desarrollo Local de Tunjuelito | G88: FDL | H88: 12106 - GERENCIA LOCAL TUNJUELLTO | I88: SI | R88: 708 - Empresa de Telecomunicaciones de Bogotá S.A. E.S.P. | S88: MIXTA | T88: MIXTA>50 sin ing | U88: SIN INGRESOS
F89: 7 - Fondo de Desarrollo Local de Bosa | G89: FDL | H89: 12107 - GERENCIA LOCAL BOSA | I89: SI | R89: 709 - Américas Business Process Services S.A. | S89: MIXTA | T89: MIXTA<50 | U89: SIN INGRESOS
F90: 702 - Compañía de Distribución y Comercialización de Energía S.A. E.S.P. CODENSA S.A. E.S.P. | G90: Mixta | H90: 210000 - DIRECCIÓN SECTOR SERVICIOS PÚBLICOS | I90: SI | R90: 710 - Grupo Energía Bogotá S.A. E.S.P. – GEB S.A. E.S.P. | S90: MIXTA | T90: MIXTA>50 sin ing | U90: SIN INGRESOS
F91: 704 - Compañía Colombiana de Servicios de Valor Agregado y Telemático S.A. ESP - COLVATEL S.A E.S.P. | G91: Mixta | H91: 210000 - DIRECCIÓN SECTOR SERVICIOS PÚBLICOS | I91: SI | R91: 712 - VANTI S.A. ESP | S91: MIXTA | T91: MIXTA<50 | U91: SIN INGRESOS
F92: 705 - Empresa Generadora de Energía S.A. E.S.P. - EMGESA S.A. E.S.P. | G92: Mixta | H92: 210000 - DIRECCIÓN SECTOR SERVICIOS PÚBLICOS | I92: SI | R92: 718 - Transportadora de Gas Internacional S.A. E.S.P.– TGI S.A. E.S.P. | S92: MIXTA | T92: MIXTA>50 sin ing | U92: SIN INGRESOS
F93: 708 - Empresa de Telecomunicaciones de Bogotá S.A. E.S.P. | G93: Empresa Industrial y Comercial | H93: 210000 - DIRECCIÓN SECTOR SERVICIOS PÚBLICOS | I93: SI | R93: 721 - Caudales de Colombia S.A. E.S.P. | S93: MIXTA | T93: MIXTA>50 sin ing | U93: SIN INGRESOS
F94: 709 - Américas Business Process Services S.A. | G94: Menor 50% | H94: 210000 - DIRECCIÓN SECTOR SERVICIOS PÚBLICOS | I94: SI | R94: 729 - SKYNET de Colombia S.A. E.S.P. | S94: MIXTA | T94: MIXTA>50 sin ing | U94: SIN INGRESOS
F95: 710 - Grupo Energía Bogotá S.A. E.S.P. – GEB S.A. E.S.P. | G95: Mixta | H95: 210000 - DIRECCIÓN SECTOR SERVICIOS PÚBLICOS | I95: SI | R95: 8 - Fondo de Desarrollo Local de Kennedy | S95: PUBLICA SIN GESTIÓN FINANCIERA | T95: PUBLICA con ing | U95: CON INGRESOS
F96: 712 - VANTI S.A. ESP | G96: Mixta | H96: 210000 - DIRECCIÓN SECTOR SERVICIOS PÚBLICOS | I96: SI | R96: 9 - Fondo de Desarrollo Local de Fontibón | S96: PUBLICA SIN GESTIÓN FINANCIERA | T96: PUBLICA con ing | U96: CON INGRESOS
F97: 718 - Transportadora de Gas Internacional S.A. E.S.P.– TGI S.A. E.S.P. | G97: Mixta | H97: 210000 - DIRECCIÓN SECTOR SERVICIOS PÚBLICOS | I97: SI
F98: 721 - Caudales de Colombia S.A. E.S.P. | G98: Mixta | H98: 210000 - DIRECCIÓN SECTOR SERVICIOS PÚBLICOS | I98: SI
F99: 729 - SKYNET de Colombia S.A. E.S.P. | G99: Mixta | H99: 210000 - DIRECCIÓN SECTOR SERVICIOS PÚBLICOS | I99: SI
F100: 8 - Fondo de Desarrollo Local de Kennedy | G100: FDL | H100: 12108 - GERENCIA LOCAL KENNEDY | I100: SI
B101: MUESTRA | F101: 9 - Fondo de Desarrollo Local de Fontibón | G101: FDL | H101: 12109 - GERENCIA LOCAL FONTIBÓN | I101: SI
B102: SI
B103: NO

Sheet INSTRUCTIVO
C1: MATERIALIDAD Y CONCEPTO AUDITORÍA DE CUMPLIMIENTO Instructivo | F1: Código formato: PVCGF-16-03 Versión: 3.0
B3: El PVCGF 16-03 está compuesto por dos Hojas:
B4: 1. Materialidad AC
B5: 2. Concepto AC (Click para ir a Instructivo)
B6: INSTRUCTIVO MATERIALIDAD AC
B7: Datos Generales de la Auditoría
B8: Determinación del tipo Materialidad Lista Desplegable. El equipo auditor determina con base en el conocimiento del asunto el (los) tipo(s) de materialidad que aplicaran. El auditor podrá seleccionar la materialidad cualitiva por ejemplo, cuando no existan datos exactos o precisos sobre los recursos a auditar, cuando el asunto a auditar por su complejidad no sea facilmente identificable el valor de los recursos a auditar, cuando se conozca el valor del universo del asunto a auditar, pero en fase de planeación no se cuenta con información certera sobre los valores financiados con recursos de otros entes territoriales o incluso de la nación o cuando el asunto auditor es tan particular que requiere una evaluación específica, por tanto el concepto queda a jucio profesional del auditor.
B9: 1. MATERIALILDAD CUANTITATIVA 1.1. Definición de la base y monto del asunto por auditar.
B10: Base seleccionada Lista Desplegable. El auditor podrá elegir entre las bases relacionadas a continuación: - Ingresos programados - Gastos programados - Ingresos ejecutados - Gastos ejecutados - Registro o cuenta de los Estados Financieros o del Presupuesto - Recursos Asignados al Plan Acción de Inversiones - Valor Plan de Acción Politica Pública - Valor del Plan Estratégico o el que haga sus veces - Pago de Sentencias Judiciales, Laudos Arbitrales y Conciliaciones Extrajudiciales y similares - Otros conceptos En caso de elegir "Otros conceptos", en el siguiente campo, especifíquelo(s) Monto Corresponde a la cuantía relacionada al asunto por auditar
B11: 1.2. Criterios para determinar el Riesgo del Asunto El asunto predominante es el tema que tiene mayor impacto dentro del asunto a auditar en el caso que existan varios temas o asuntos a auditar. La Valoración del Riesgo Combinado del Asunto a Auditar, se extrae de la matriz de riesgos y controles en fase de planeación en la auditoría que se está desarrollando.
B12: Los criterios o variables para determinar el nivel de riesgo son los siguientes: 1. Hallazgos configurados en la auditoría anterior en el Proceso (predominante) asociado al asunto 2. Concepto u Opinión del Proceso (predominante) asociado al asunto, de la auditoría anterior (Financiera de Gestión y Resultados) 3. Calificación del Control Fiscal Interno de la auditoría anterior del Proceso (predominante) asociado al asunto 4. Valoración del Riesgo Residual o Combinado del asunto por auditar. En cada una de las variables se escoge el valor correspondiente de la lista desplegable. En el caso que se hayan dos o mas procesos asociados al asunto por auditar, la información de los hallazgos, concepto u opinión y calificación de control fiscal Interno de la auditoría anterior, se tomará del proceso predominante en el asunto.
B13: Las opciones y los puntajes para cada criterio son los siguientes:
B14: 1.3. Determinación del Riesgo del Asunto La sumatoria de los puntajes obtenidos determina automáticamente el nivel de riesgo de control fiscal del asunto por auditar, así:
B15: 1.4. Determinación del Porcentaje de Materialidad de Planeación (MP) Para cada nivel de riesgo, existe asociado un rango de porcentajes de materialidad, como se ilustra:
B16: Una vez determinado el rango de porcentajes de materialidad de planeación, el equipo auditor con su juicio profesional, establece el porcentaje de materialidad cuantitativa: El porcentaje determinado se multiplica con la base seleccionada estableciendo el valor de Materialidad de Planeación (MP)
B17: 1.5 Error Tolerable de incumplimiento (ET): Es la tasa máxima de incumplimiento que los auditores están dispuestos a aceptar del universo del asunto. Es el límite más allá del cual, de ser excedido por la tasa real de incumplimiento, afectará el concepto del auditor sobre el asunto auditado. Campo automático. Corresponde al 50% de la MP cuando el nivel de riesgo determinado es Alto; y al 75% cuando el riesgo es Bajo o Medio
B18: 1.6. Cálculo del umbral para Resumen de Diferencias (RD): Es un valor por debajo del cual no se acumularían las incorrecciones puesto que se espera que la acumulación de tales valores claramente no tenga un efecto material sobre el asunto auditado. De todas formas, si bien estas diferencias no son materiales para el tema del concepto, no significan que no sean hallazgos que deben reportarse dentro del informe de la auditoría. Es potestad del equipo auditor utilizar este método cuando se usa la materialidad cuantitativa. Campo automático. El RD corresponde al 3% de la MP cuando el riesgo determinado es alto y 5% para los demás casos. La aplicación del resumen de diferencias se da a criterio del auditor, por esa razón es que en la hoja de concepto de la materialidad cuantitativa existe la opción de marcar si o no. Es decir, es potestad del equipo auditor utilizar este método cuando se usa la materialidad cuantitativa. El resumen de diferencias se calcula así: (RD): Es un valor por debajo del cual no se acumularían las incorrecciones puesto que se espera que la acumulación de tales valores claramente no tenga un efecto material sobre el asunto auditado. De todas formas, si bien estas diferencias no son materiales para el tema del concepto, no significan que no sean hallazgos que deben reportarse dentro del informe de la auditoría, simplemente que los hallazgos que estén por debajo del RD no serán tenidos en cuenta en la sumatoria del total de incumplimientos cuantitativos. El RD corresponde al 3% de la materialidad planeada cuando el riesgo determinado es alto y 5% de la materialidad planeada cuando el riesgo de auditoría es medio o bajo.
B19: Ejemplo 1 Concepto con materialidad cuantitativa sin aplicar resumen de diferencias.
B20: Ejemplo 2 Concepto con materialidad cuantitativa aplicando resumen de diferencias. En el ejemplo se observa que el concepto cambio de "Seguridad Razonable - Incumplimiento Material con Reservas" a un concepto de "Seguridad Razonable - Sin Reservas" al aplicar el resumen de diferencias, dado que la sumatoria del total de incumplimientos cuantitativos no tomó el hallazgo fiscal menor o igual al valor de resumen de diferencias por valor de 70.000.000. Esta opción le permite al auditor descartar u obviar los hallazgos fiscales que no sean tan trascendentes para emitir el concepto de cumplimiento, lo que se traduce en un beneficio para la calificación de la gestión fiscal de sujeto de vigilancia y control fiscal en la auditoría de cumplimiento. Se reitera que esto no es óbice para que los hallazgos así sean considerados pequeños o menores no se presenten dentro del informe de auditoría.
B21: 2. MATERIALIDAD CUALITATIVA 2.1. Determinación de los aspectos cualitativos Si se determinó aplicar materialidad cualitativa, el equipo auditor identifica (de lista desplegable) y/o establece otros aspectos cualitativos, asi como el (los) criterio(s) normativos y su porcentaje de materialidad respectivo.
B23: INSTRUCTIVO CONCEPTO AC
B24: 1. Emisión de Concepto - Materialidad Cuantitativa 1.1.Incumplimientos cuantitativos Incorporar las observaciones / hallazgos de incidencia fiscal que se configuraron en la fase de ejecución de la auditoría del asunto.
B25: 1.2 Concepto - Materialidad Cuantitativa Emite el Concepto basándose en las cuantías de los incumplimientos cuantitativos detectados, la Materialidad de Planeación, el Error Tolerable de Incumplimiento y las limitaciones en el alcance de la auditoría.
B26: Para un nivel de aseguramiento Razonable, el Concepto será: - Sin reservas. Cuando el total de incumplimientos cuantitativos no supera el error tolerable. - Incumplimiento Material con reserva. Cuando el total de incumplimientos cuantitativos supera el error tolerable sin llegar a la Materialidad de Planeación. - Incumplimiento Material negativo o adverso. Cuando el total de incumplimientos cuantitativos sobrepasa la Materialidad de Planeación.
B27: Si existe limitaciones en el alcance de la auditoría; el auditor deberá seleccionar la opción "Si" en la lista desplegable de la celda "Limitación en el alcance" . Es oportuno mencionar que tal decisión debió ser adoptada en el comité de aprobación de observaciones. Por tanto, el concepto resultante será: - Limitación en el alcance con reserva. Cuando el total de incumplimientos cuantitativos supera el error tolerable. - Limitación en el alcance - Abstención de concepto. Para los demás casos.
B28: 2. Emisión de Concepto - Materialidad Cualitativa De la evaluación efectuada, para cada aspecto cualitativo, se inserta el número de hallazgo cuando exista un incumplimiento detectado. No obstante, siempre se debe diligenciar el campo "% de Incumplimiento del aspecto evaluado", si no existe incumplimiento se registrará 0. Concepto por Aspecto: Los conceptos cuando se aplique materialidad cualitativa siempre se clasificarán dentro de la seguridad razonable. El concepto "Sin reservas" resulta de un incumplimiento menor al error tolerable. El Concepto "Incumplimiento Material con Reserva" resulta de un incumplimiento mayor o igual al error tolerable y menor a la materialidad. El concepto "Incumplimiento Material Negativo o Adverso", resulta de un incumplimiento mayor o igual a la materialidad. El Concepto consolidado, para la materialidad cualitativa será: - "Sin reservas" cuando la totalidad de los aspectos evaluados fueron sin reservas. - "Incumplimiento Material con Reserva" cuando algún (os) aspectos evaluados obtuvieron incumplimientos materiales con reserva, o sin reserva o Incumplimiento material negativo o adverso, siempre y cuando estos aspectos evaluados no superen el 50%. - "Incumplimiento Material negativo o adverso" cuando el 50% o más de los aspectos evaluados fueron calificados como Incumplimiento Material negativo o adverso.
B30: 3. Emisión de Concepto - Materialidad Cuantitativa y Cualitativa (Combinada) El Concepto a emitir cuando se determinó usar la materialidad cuantitativa y cualitativa, resulta de la combinación de los conceptos en cada una de las materialidades así:
B31: 4. Justificación del Concepto a emitir Independientemente del tipo de materialidad usada, el equipo auditor justifica y correlaciona el Concepto emitido con los resultados obtenidos del ejercicio auditor
B32: 5. Identificación del Equipo Auditor y Firmas

Sheet 1. Materialidad AC
C1: MATERIALIDAD AUDITORÍA DE CUMPLIMIENTO | F1: Código formato: PVCGF-16-03 Versión: 3.0
B3: Dirección de Fiscalización: | C3: =_xlfn.IFNA(VLOOKUP(C4,LISTAS!F3:H100,3,),"") -> 150000 - DIRECCIÓN SECTOR HACIENDA
B4: Sujeto de vigilancia y control fiscal: | C4: 111 - Secretaría Distrital de Hacienda – SDH
B5: Asunto a auditar: | C5: “Evaluar el cumplimiento de la gestión en la fiscalización, liquidación y recobro del Impuesto Predial Unificado-IPU vigencia 2017 y 2018”
B6: Vigencia PDVCF: | C6: 2025
B7: Código Auditoría: | C7: 69
B8: Periodo Auditado | C8: 2017-2018
B9: Fecha de elaboración: | C9: 45757
B10: Proceso(s) vinculado(s) (Alcance): | C10: Presupuesto de Ingresos
B12: Materialidad Aplicada | C12: Cuantitativa y Cualitativa (Combinada)
B14: MATERIALIDAD CUANTITATIVA
B15: I. Seleccione una de las bases:
B16: Base seleccionada | C16: Monto
B17: Otros conceptos | C17: 5000000
B18: Otros conceptos (Identifique):
B20: CRITERIOS PARA DETERMINAR EL RIESGO DEL ASUNTO
B21: AUDITORÍA ANTERIOR | E21: AUDITORIA ACTUAL
B22: Hallazgos configurados en la auditoría anterior en el Proceso (predominante) asociado al asunto | C22: Concepto u Opinión del Proceso (predominante) asociado al asunto, de la auditoría anterior (Financiera de Gestión y Resultados) | D22: Calificación del Control Fiscal Interno de la auditoría anterior del Proceso (predominante) asociado al asunto | E22: Valoración del Riesgo Combinado del Asunto Auditar
B23: Hallazgos con Incidencia Fiscal o con Presunta Incidencia Penal | C23: Favorable con Observaciones / Con salvedades / Moderadamente Efectivo | D23: Eficiente | E23: Medio
B24: =_xlfn.IFNA(VLOOKUP(B23,TB_Hallazgos_ant[],2,FALSE),"") -> 4 | C24: =_xlfn.IFNA(VLOOKUP(C23,TB_Conceptos_Ant[],2,FALSE),"") -> 2.5 | D24: =_xlfn.IFNA(VLOOKUP(D23,TB_Diseño_COntrol[],2,FALSE),"") -> 1 | E24: =_xlfn.IFNA(VLOOKUP(E23,TB_Riesgo_residual[],2,FALSE),"") -> 2
B26: Suma de puntos | C26: Nivel de Riesgo Determinado | D26: Rango de Materialidad
B27: =_xlfn.IFNA(SUM(B24:E24),"") -> 9.5 | C27: =_xlfn.IFNA(VLOOKUP(B27,TB_MaterialidadRangos[],3,TRUE),"") -> MEDIO | D27: =_xlfn.IFNA(VLOOKUP(B27,TB_MaterialidadRangos[],6,TRUE),"") -> Entre >2,33% y <=3,66%
B30: RANGOS DE PORCENTAJE DE MATERIALIDAD SEGÚN RIESGO
C31: Riesgo Bajo | D31: Riesgo Medio | E31: Riesgo Alto
B32: MATERIALIDAD | C32: =I155 -> Entre >3,66% y <=5,00% | D32: =I156 -> Entre >2,33% y <=3,66% | E32: =I157 -> Entre >=1,00% y <=2,33%
B34: Materialidad de planeación (MP)
B35: II. Multiplicación del porcentaje de materialidad con la base seleccionada
B37: Materialidad Mínima | C37: Materialidad Máxima | D37: % Materialidad establecida | E37: Materialidad de Planeación - MP
B38: =_xlfn.IFNA(VLOOKUP(B27,TB_MaterialidadRangos[],4,TRUE),"") -> 0.0234 | C38: =_xlfn.IFNA(VLOOKUP(B27,TB_MaterialidadRangos[],5,TRUE),"") -> 0.0366 | D38: 0.0367 | E38: =+C17*D38 -> 183500
B39: Justificación selección base y porcentaje
B47: Error Tolerable de incumplimiento
B48: III. El Error Tolerable (ET) corresponde al 50% de la Materialidad de Planeación (MP) cuando el nivel de riesgo determinado es Alto; y al 75% cuando el riesgo es Bajo o Medio
B50: Porcentaje determinado | C50: Error Tolerable (ET)
B51: =_xlfn.IFNA(VLOOKUP(Riesgo,TB_MaterialidadRangos[[Riesgo ]:[Error Tolerable]],5,FALSE),"") -> 0.75 | C51: =IFERROR(E38*B51,"") -> 137625
B53: El Error Tolerable (ET) es el límite maximo de aceptación de errores con el que el auditor puede concluir que el resultado de las pruebas debe lograr su objetivo.
B56: Determinación del importe para Resumen de Diferencias (RD)
B57: IV. El Resumen de Diferencias (RD) corresponde al 3% de la Materialidad de Planeación (MP) cuando el riesgo determinado es alto y para los otros casos el del 5%
B58: Porcentaje | C58: Importe para acumular RD (MP*%) | D58: 3
B59: =IF(B51=50%,3%,5%) -> 0.05 | C59: =E38*B59 -> 9175 | D59: 5
B61: MATERIALIDAD CUALITATIVA
B62: Aspecto cualitativo | D62: Fase de Planeación (Selección)
D63: Criterios (Norma) | F63: Materialidad por aspecto (%)
B64: Afectación de ingresos o gastos gubernamentales por inconsistencias en liquidación / fiscalización / cobro / recaudo / pago | D64: Decreto 807 de 1993, Acuerdo Distrital 671 de 2017, a Ley 40 de 1990, Decreto Ley 1421 de 1993, Acuerdo Distrital 426 de 2009, Decreto Distrital 043 de 2019, entre otros vinculados con el asunto a auditar. | F64: 0.2
B65: Pago de intereses de mora a la tasa comercial en el pago de sentencias judiciales | D65: Decreto 807 de 1993, Acuerdo Distrital 671 de 2017, a Ley 40 de 1990, Decreto Ley 1421 de 1993, Acuerdo Distrital 426 de 2009, Decreto Distrital 043 de 2019, entre otros vinculados con el asunto a auditar. | F65: 0.2
B66: Fallas en la prestación del servicio por inobservancia de obligaciones de inspección /control / vigilancia / supervisión | D66: Decreto 807 de 1993, Acuerdo Distrital 671 de 2017, a Ley 40 de 1990, Decreto Ley 1421 de 1993, Acuerdo Distrital 426 de 2009, Decreto Distrital 043 de 2019, entre otros vinculados con el asunto a auditar. | F66: 0.2
B74: Otros Aspectos Cualitativos | D74: Criterios (Norma) | F74: Materialidad por aspecto (%)
B75: Gestiones de cobro ineficaces por parte de la SDH en las vigencias auditadas | D75: Decreto 807 de 1993, Acuerdo Distrital 671 de 2017, a Ley 40 de 1990, Decreto Ley 1421 de 1993, Acuerdo Distrital 426 de 2009, Decreto Distrital 043 de 2019, entre otros vinculados con el asunto a auditar. | F75: 0.2
B76: Prescripción de la acción de cobro del IPU. | D76: Decreto 807 de 1993, Acuerdo Distrital 671 de 2017, a Ley 40 de 1990, Decreto Ley 1421 de 1993, Acuerdo Distrital 426 de 2009, Decreto Distrital 043 de 2019, entre otros vinculados con el asunto a auditar. | F76: 0.2
B80: Disponga de tantas filas según los aspectos cualitativos necesarios de acuerdo con el alcance del Asunto
B81: Justificación selección de aspectos y porcentaje de materialidad respectivo
B109: SUMATORIA PUNTAJE DE VARIABLES | C109: CALIFICACIÓN DE CRITERIOS DE GESTIÓN | D109: NIVEL DE RIESGO | E109: RANGO ESTABLECIDO PARA DETERMINAR MATERIALIDAD | F109: CRITERIOS PARA ESTABLECER EL PONCENTAJE DE MATERIALIDAD | G109: % Materialidad media según nivel de Riesgo
B110: Base saldo de activos, pasivo, patrimonio, ingresos, gastos y margen bruto: ENTRE 0,50% y 3,0%
B111: 4 | C111: MEJOR CALIFICACION | D111: BAJO | E111: Entre >1,0% y <=1,5% | F111: 1. A menor puntaje de la calificación de las variables de auditoría (Mejores resultados), mayor tolerancia o porcentaje de materialidad cuantitativa. 2. De conformidad con el rango general establecido por Guide to Using International Standards on Auditing in the Audits of Small- and Medium-Sized Entities Volume 2 —Practical Guidance (Third edition) que va del 1% al 3%, se estableció la materialidad % por nivel, tal como se presenta en la siguiente columna. | G111: 0.025
B112: 5
B113: 6
B114: 7
B115: 8 | C115: CALIFICACIÓN INTERMEDIA | D115: MEDIO | E115: Entre >0,5% y <=1,0% | G115: 0.016
B116: 9
B117: 10
B118: 11
B119: 12 | C119: PEOR CALIFICACION | D119: ALTO | E119: Entre >=0,20% y 0,5% | G119: 0.007
B120: 13
B121: 14
B122: 15
B123: 16
B127: Tabla5 | D127: Tabla6
B128: Ingresos programados | D128: MATERIALIDAD_TIPO
B129: Gastos programados | D129: Cuantitativa
B130: Ingresos ejecutados | D130: Cualitativa
B131: Gastos ejecutados | D131: Cuantitativa y Cualitativa (Combinada)
B132: Registro o cuenta de los Estados Financieros o del Presupuesto
B133: Recursos Asignados al Plan Acción de Inversiones
B134: Valor Plan de Acción Politica Pública
B135: Valor del Plan Estratégico o el que haga sus veces
B136: Pago de Sentencias Judiciales, Laudos Arbitrales y Conciliaciones Extrajudiciales y similares
B137: Otros conceptos | E137: TB_Conceptos_Ant
A138: TB_Hallazgos_Ant | B138: HALLAZGOS | C138: PUNTOS | E138: CONCEPTOS_ANTERIORES | F138: PUNTOS
B139: Hallazgos con Incidencia Fiscal o con Presunta Incidencia Penal | C139: 4 | E139: Desfavorable /No Razonable / Inefectiva / Negativa / Abstención | F139: 4
B140: Hallazgos con Presunta Incidencia Disciplinaria | C140: 3 | E140: Favorable con Observaciones / Con salvedades / Moderadamente Efectivo | F140: 2.5
B141: Hallazgos Administrativos | C141: 2 | E141: Favorable /Razonable / Efectiva / Limpia / Sin salvedades | F141: 1
B142: Sin hallazgos | C142: 1
G145: TB_Riesgo_residual
A146: TB_Diseño_de_Control | B146: DISEÑO_CONTROL | C146: PUNTOS | E146: RIESGO_RESIDUAL | F146: PUNTOS | G146: TB_Riesgo_residual
B147: Inexistente | C147: 4 | E147: Crítico | F147: 4 | I147: Entre >3,66% y <=5,00%
B148: Ineficiente | C148: 3 | E148: Alto | F148: 3 | I148: Entre >2,33% y <=3,66%
B149: Con deficiencias | C149: 2 | E149: Medio | F149: 2 | I149: Entre >=1,00% y <=2,33%
B150: Eficiente | C150: 1 | E150: Bajo | F150: 1
D153: TB_MaterialidadRangos
D154: PUNTAJE_MIN | E154: PUNTAJE_MAX | F154: Riesgo | G154: MATERIALIDAD_MIN | H154: MATERIALIDAD_MAX | I154: REF | J154: Error Tolerable
D155: 4 | E155: 7 | F155: BAJO | G155: 0.0367 | H155: 0.05 | I155: Entre >3,66% y <=5,00% | J155: 0.75
D156: 8 | E156: 11 | F156: MEDIO | G156: 0.0234 | H156: 0.0366 | I156: Entre >2,33% y <=3,66% | J156: 0.75
D157: 12 | E157: 16 | F157: ALTO | G157: 0.01 | H157: 0.0233 | I157: Entre >=1,00% y <=2,33% | J157: 0.5
C162: TB_Concepto
C163: MIN | D163: MAX | E163: CONCEPTO
C164: 0 | D164: =C51 -> 137625 | E164: Seguridad Razonable -Sin reservas
C165: =D164+1 -> 137626 | D165: =E38 -> 183500 | E165: Seguridad Razonable -Incumplimiento Material con reserva
C166: =D165+1 -> 183501 | D166: =(C166-1)*1000 -> 183500000 | E166: Seguridad Razonable -Incumplimiento Material negativo o adverso
E167: Seguridad Limitada -Limitación en el alcance - Abstención de concepto
E168: Seguridad Limitada -Limitación en el alcance con reserva
B169: 0.5
B170: 0.75
B173: Factores cualitativos
B174: Otorgar subsidios y beneficios desconociendo criterios de focalización previamente establecidos
B175: Criterios de asignación Subsidios / Beneficios contrarios a principios / fines de la ley / política / programa
B176: Otorgar subsidios y beneficios a población inexistente
B177: Gastos realizados por fuera de los límites (de tiempo o presupuestales) y la destinación prevista
B178: Entrega o pagos de beneficios insuficientes e inoportunos a beneficiarios
B179: Fallas en la prestación del servicio por inobservancia de obligaciones de inspección /control / vigilancia / supervisión
B180: Afectación de ingresos o gastos gubernamentales por inconsistencias en liquidación / fiscalización / cobro / recaudo / pago
B181: Recursos fiscales canalizados a fines distintos a los previstos por las Autoridades (Normas)
B182: Recursos Administrados por terceros o particulares sin adecuado control y seguimiento
B183: Reconocimiento de operaciones inexistentes o duplicadas
B184: Pago de intereses de mora a la tasa comercial en el pago de sentencias judiciales

Sheet 2. Conceptos AC
C1: CONCEPTO AUDITORÍA DE CUMPLIMIENTO | G1: Código formato: PVCGF-16-03 Versión: 3.0
B3: Dirección de Fiscalización: | C3: =+'1. Materialidad AC'!C3:F3 -> 150000 - DIRECCIÓN SECTOR HACIENDA
B4: Sujeto de vigilancia y control fiscal: | C4: =+'1. Materialidad AC'!C4:F4 -> 111 - Secretaría Distrital de Hacienda – SDH
B5: Asunto a auditar: | C5: =+'1. Materialidad AC'!C5:F5 -> “Evaluar el cumplimiento de la gestión en la fiscalización, liquidación y recobro del Impuesto Predial Unificado-IPU vigencia 2017 y 2018”
B6: Vigencia PDVCF: | C6: =+'1. Materialidad AC'!C6:F6 -> 2025
B7: Código Auditoría: | C7: =+'1. Materialidad AC'!C7:F7 -> 69
B8: Periodo Auditado | C8: =+'1. Materialidad AC'!C8:F8 -> 2017-2018
B9: Fecha de elaboración: | C9: =+'1. Materialidad AC'!C9:F9 -> 45757
B10: Proceso(s) vinculado(s) (Alcance): | C10: =+'1. Materialidad AC'!C10:F10 -> Presupuesto de Ingresos
B12: HALLAZGOS - INCUMPLIMIENTOS Y/O DESVIACIONES CUANTITATIVAS
B13: No. Hallazgo | C13: Proceso(s) asociado al Asunto | D13: Fuente(s) de Criterio | E13: Criterio(s) incumplido | F13: Incidencia del Hallazgo | G13: Estimación cuantitativa del Hallazgo
P34: CONCEPTO | R34: CUALITATIVA
B35: CONCEPTO MATERIALIDAD CUANTITATIVA | R35: Seguridad Razonable -Sin reservas | S35: Seguridad Razonable -Incumplimiento Material con reserva | T35: Seguridad Razonable -Incumplimiento Material negativo o adverso
B36: Valor Base | C36: =ValorUniverso -> 5000000 | D36: TOTAL INCUMPLIMIENTOS CUANTITATIVOS | F36: CONCEPTO (Materialidad Cuantitativa) | P36: CUANTITATIVA | Q36: Seguridad Razonable -Sin reservas | R36: Seguridad Razonable -Sin reservas | S36: Seguridad Razonable -Incumplimiento Material con reserva | T36: Seguridad Razonable -Incumplimiento Material negativo o adverso
B37: Materialidad de Planeación MP (%) | C37: =MP -> 183500 | Q37: Seguridad Razonable -Incumplimiento Material con reserva | R37: Seguridad Razonable -Incumplimiento Material con reserva | S37: Seguridad Razonable -Incumplimiento Material con reserva | T37: Seguridad Razonable -Incumplimiento Material negativo o adverso
B38: Error Tolerable ET ($) | C38: =ET -> 137625 | D38: =IF(C39="si",SUMIF(G14:G33,">"&C40),SUM(G14:G33)) -> 0 | F38: =IF(C41="No",VLOOKUP(D38,TB_Concepto[],3,TRUE),IF(D38>C38,'1. Materialidad AC'!E167,'1. Materialidad AC'!E168)) -> Seguridad Razonable -Sin reservas | Q38: Seguridad Razonable -Incumplimiento Material negativo o adverso | R38: Seguridad Razonable -Incumplimiento Material negativo o adverso | S38: Seguridad Razonable -Incumplimiento Material negativo o adverso | T38: Seguridad Razonable -Incumplimiento Material negativo o adverso
B39: Aplica Resumen de Diferencias? | C39: Si | Q39: Seguridad Limitada -Limitación en el alcance con reserva | R39: Seguridad Limitada -Limitación en el alcance con reserva | S39: Seguridad Limitada -Limitación en el alcance con reserva | T39: Seguridad Limitada -Limitación en el alcance con reserva
B40: Resumen de Diferencias | C40: =RD -> 9175 | M40: MEDIO - Bajo | Q40: Seguridad Limitada -Limitación en el alcance - Abstención de concepto | R40: Seguridad Limitada -Limitación en el alcance - Abstención de concepto | S40: Seguridad Limitada -Limitación en el alcance - Abstención de concepto | T40: Seguridad Limitada -Limitación en el alcance - Abstención de concepto
B41: Limitación en el alcance | C41: No | M41: ALTO | P41: Indice cuantitativa | Q41: =MATCH(F38,Q36:Q40,0) -> 1
B42: } | P42: Indice cualitativa | Q42: =MATCH(H60,R35:T35,0) -> 1
B43: HALLAZGOS - INCUMPLIMIENTOS Y/O DESVIACIONES CUALITATIVAS | F43: CONCEPTO MATERIALIDAD CUALITATIVA | P43: CONCEPTO | Q43: =INDEX(R36:T40,Q41,Q42) -> Seguridad Razonable -Sin reservas
B44: No. Hallazgo | C44: Proceso asociado con el Asunto | D44: Aspecto cualitativo | E44: % de Incumplimiento del aspecto evaluado | F44: Error Tolerable (%) | G44: Materialidad por aspecto (%) | H44: Concepto por Aspecto | K44: =IFERROR((SUMIF($M$45:$M$47,"*Sin Reservas*",K45:K50)),"") -> 0.1111111111 | M44: CONCEPTO | N44: CANTIDAD | P44: sumar.si | Q44: sumar.si.Conjunto
B45: 11111110 | C45: Estados Financieros | D45: =IF(ISBLANK('1. Materialidad AC'!B64),"",'1. Materialidad AC'!B64) -> Afectación de ingresos o gastos gubernamentales por inconsistencias en liquidación / fiscalización / cobro / recaudo / pago | E45: 0.21 | F45: =IF(G45="","",G45*'1. Materialidad AC'!$B$51) -> 0.15 | G45: =IF(ISBLANK('1. Materialidad AC'!F64),"",'1. Materialidad AC'!F64) -> 0.2 | H45: =IF(ISBLANK(E45),"",IF(E45>=G45,"Incumplimiento Material negativo o adverso",IF(E45="","",IF(E45<F45,"Sin Reservas",IF(E45>=F45,"Incumplimiento Material con reserva"))))) -> Incumplimiento Material negativo o adverso | J45: =+IF(H45="Incumplimiento Material negativo o adverso",3,IF(H45="","",IF(H45="Sin Reservas",1,IF(H45="Incumplimiento Material con reserva",2)))) -> 3 | K45: =IF(E45="","",J45/$J$54) -> 0.3333333333 | M45: Seguridad Razonable -Incumplimiento Material negativo o adverso | N45: =COUNTIF($H$45:$H$56,"*adverso*") -> 2 | O45: m36 | P45: =SUMIF($H$45:$H$56,M45,$K$45:$K$50) -> 0
D46: =IF(ISBLANK('1. Materialidad AC'!B65),"",'1. Materialidad AC'!B65) -> Pago de intereses de mora a la tasa comercial en el pago de sentencias judiciales | E46: 0.02 | F46: =IF(G46="","",G46*'1. Materialidad AC'!$B$51) -> 0.15 | G46: =IF(ISBLANK('1. Materialidad AC'!F65),"",'1. Materialidad AC'!F65) -> 0.2 | H46: Sin Reservas | J46: =+IF(H46="Incumplimiento Material negativo o adverso",3,IF(H46="","",IF(H46="Sin Reservas",1,IF(H46="Incumplimiento Material con reserva",2)))) -> 1 | K46: =IF(E46="","",J46/$J$54) -> 0.1111111111 | M46: Seguridad razonable -Incumplimiento Material con reserva | N46: =COUNTIF($H$45:$H$56,"*Material con reserva*") -> 0 | O46: m37 | P46: =SUMIF($H$45:$H$56,M46,$K$45:$K$50) -> 0
D47: =IF(ISBLANK('1. Materialidad AC'!B66),"",'1. Materialidad AC'!B66) -> Fallas en la prestación del servicio por inobservancia de obligaciones de inspección /control / vigilancia / supervisión | E47: 0.11 | F47: =IF(G47="","",G47*'1. Materialidad AC'!$B$51) -> 0.15 | G47: =IF(ISBLANK('1. Materialidad AC'!F66),"",'1. Materialidad AC'!F66) -> 0.2 | H47: Sin Reservas | J47: 1 | K47: =IF(E47="","",J47/$J$54) -> 0.1111111111 | M47: Seguridad razonable -Sin Reservas | N47: =COUNTIF($H$45:$H$56,"*Sin reservas*") -> 3 | O47: m38 | P47: =SUMIF($H$45:$H$56,M47,$K$45:$K$50) -> 0
D48: =IF(ISBLANK('1. Materialidad AC'!B67),"",'1. Materialidad AC'!B67) ->  | F48: =IF(G48="","",G48*'1. Materialidad AC'!$B$51) ->  | G48: =IF(ISBLANK('1. Materialidad AC'!F67),"",'1. Materialidad AC'!F67) ->  | J48: =+IF(H54="Incumplimiento Material negativo o adverso",3,IF(H54="","",IF(H54="Sin Reservas",1,IF(H54="Incumplimiento Material con reserva",2)))) ->  | K48: =IF(E54="","",J48/$J$54) ->  | M48: MAXIMO | N48: =MAX(N45:N47) -> 3 | O48: m39 | P48: =SUM(P45:P47) -> 0
D49: =IF(ISBLANK('1. Materialidad AC'!B68),"",'1. Materialidad AC'!B68) ->  | F49: =IF(G49="","",G49*'1. Materialidad AC'!$B$51) ->  | G49: =IF(ISBLANK('1. Materialidad AC'!F68),"",'1. Materialidad AC'!F68) ->  | J49: =+IF(H55="Incumplimiento Material negativo o adverso",3,IF(H55="","",IF(H55="Sin Reservas",1,IF(H55="Incumplimiento Material con reserva",2)))) -> 1 | K49: =IF(E55="","",J49/$J$54) -> 0.1111111111 | M49: COINCIDIR | N49: =MATCH(N48,N45:N47,0) -> 3 | O49: m40 | P49: =COUNTIF(P45:P47,">=50%") -> 0
D50: =IF(ISBLANK('1. Materialidad AC'!B69),"",'1. Materialidad AC'!B69) ->  | F50: =IF(G50="","",G50*'1. Materialidad AC'!$B$51) ->  | G50: =IF(ISBLANK('1. Materialidad AC'!F69),"",'1. Materialidad AC'!F69) ->  | J50: =+IF(H56="Incumplimiento Material negativo o adverso",3,IF(H56="","",IF(H56="Sin Reservas",1,IF(H56="Incumplimiento Material con reserva",2)))) -> 3 | K50: =IF(E56="","",J50/$J$54) -> 0.3333333333 | M50: INDICE (MAYORIA) | N50: =INDEX(M45:M47,N49) -> Seguridad razonable -Sin Reservas
D51: =IF(ISBLANK('1. Materialidad AC'!B70),"",'1. Materialidad AC'!B70) ->  | F51: =IF(G51="","",G51*'1. Materialidad AC'!$B$51) ->  | G51: =IF(ISBLANK('1. Materialidad AC'!F70),"",'1. Materialidad AC'!F70) -> 
D52: =IF(ISBLANK('1. Materialidad AC'!B71),"",'1. Materialidad AC'!B71) ->  | F52: =IF(G52="","",G52*'1. Materialidad AC'!$B$51) ->  | G52: =IF(ISBLANK('1. Materialidad AC'!F71),"",'1. Materialidad AC'!F71) -> 
D53: =IF(ISBLANK('1. Materialidad AC'!B72),"",'1. Materialidad AC'!B72) ->  | F53: =IF(G53="","",G53*'1. Materialidad AC'!$B$51) ->  | G53: =IF(ISBLANK('1. Materialidad AC'!F72),"",'1. Materialidad AC'!F72) -> 
D54: =IF(ISBLANK('1. Materialidad AC'!B73),"",'1. Materialidad AC'!B73) ->  | F54: =IF(G54="","",G54*'1. Materialidad AC'!$B$51) ->  | G54: =IF(ISBLANK('1. Materialidad AC'!F73),"",'1. Materialidad AC'!F73) ->  | J54: =SUM(J45:J50) -> 9 | K54: =SUM(K45:K50) -> 1
D55: =IF(ISBLANK('1. Materialidad AC'!B75),"",'1. Materialidad AC'!B75) -> Gestiones de cobro ineficaces por parte de la SDH en las vigencias auditadas | E55: 0.12 | F55: =IF(G55="","",G55*'1. Materialidad AC'!$B$51) -> 0.15 | G55: =IF(ISBLANK('1. Materialidad AC'!F75),"",'1. Materialidad AC'!F75) -> 0.2 | H55: Sin Reservas
D56: =IF(ISBLANK('1. Materialidad AC'!B76),"",'1. Materialidad AC'!B76) -> Prescripción de la acción de cobro del IPU. | E56: 0.22 | F56: =IF(G56="","",G56*'1. Materialidad AC'!$B$51) -> 0.15 | G56: =IF(ISBLANK('1. Materialidad AC'!F76),"",'1. Materialidad AC'!F76) -> 0.2 | H56: Incumplimiento Material negativo o adverso
D57: =IF(ISBLANK('1. Materialidad AC'!B77),"",'1. Materialidad AC'!B77) ->  | F57: =IF(G57="","",G57*'1. Materialidad AC'!$B$51) ->  | G57: =IF(ISBLANK('1. Materialidad AC'!F77),"",'1. Materialidad AC'!F77) -> 
D58: =IF(ISBLANK('1. Materialidad AC'!B78),"",'1. Materialidad AC'!B78) ->  | F58: =IF(G58="","",G58*'1. Materialidad AC'!$B$51) ->  | G58: =IF(ISBLANK('1. Materialidad AC'!F78),"",'1. Materialidad AC'!F78) -> 
D59: =IF(ISBLANK('1. Materialidad AC'!B79),"",'1. Materialidad AC'!B79) ->  | F59: =IF(G59="","",G59*'1. Materialidad AC'!$B$51) ->  | G59: =IF(ISBLANK('1. Materialidad AC'!F79),"",'1. Materialidad AC'!F79) -> 
G60: CONCEPTO (Materialidad Cualitativa) | H60: =IF(K54=6,"Seguridad Razonable -Sin Reservas",IF(K54>=1,N50,IF(K54=0,"No Estudiado"))) -> Seguridad razonable -Sin Reservas
M61: cuando es en blanco ok
M62: cuando es negativa ok
B64: JUSTIFICACIÓN CONCEPTO CONSIDERANDO LA IMPORTANCIA RELATIVA O MATERIALIDAD (CUANTITATIVA, CUALITATIVA O COMBINADA)
B65: CONCEPTO AUDITORIA | C65: Justificación del concepto
B66: =IFERROR(IF(Tipo_Materialidad="Cuantitativa",F38,IF(Tipo_Materialidad="Cualitativa",H60,Q43)),"") -> Seguridad Razonable -Sin reservas
B68: Rol | C68: Nombre | D68: Firma | M68: =IF(N68="1",N69="2",N70="3") -> TRUE | N68: =IF(H45="Sin reservas","1") -> FALSE
B69: Lider | N69: =IF(H45="Incumplimiento Material con reserva","2") -> FALSE
N70: =IF(H45="Incumplimiento Material negativo o adverso","3") -> 3
B72: Equipo de auditoría: | C72: Nombre | D72: Firma
B73: Auditor 1
B74: Auditor 2 | M74: Rangos | N74: Concepto | O74: Califiación | P74: %
B75: Auditor 3 | K75: 0 | M75: 0 | N75: Sin Reservas | O75: 1 | P75: =+O75/O82 -> 0.1666666667
B76: Auditor 4 | K76: 0.5 | M76: <50% | N76: Incumplimiento Material con reserva | O76: 2 | P76: =+O76/O82 -> 0.3333333333
B77: Auditor 5
B78: Auditor 6
B79: Auditor 7
B80: Auditor 8
B81: Auditor 9 | K81: 0.49 | M81: >=50% | N81: Incumplimiento Material negativo o adverso | O81: 3 | P81: =+O81/O82 -> 0.5
B82: Auditor 10 | O82: 6 | P82: =SUM(P75:P81) -> 1
B83: Contratista 1
B84: Contratista 2
B85: Contratista 3
B86: Contratista 4
B87: Contratista 5 | N87: Sin Reservas | O87: 0
B88: Pasante | N88: Incumplimiento Material con reserva | O88: 0.51
N89: Incumplimiento Material negativo o adverso | O89: 0.49
O90: =SUM(O87:O89) -> 1
F177: Tabla121
F178: INCIDENCIA OBSERVACION
F179: CON INCIDENCIA FISCAL
F180: CON INCID. FISCAL Y PRES. DISCIPLINARIA
F181: CON INCID. FISCAL Y PRES. PENAL
F182: CON INCID. FISCAL, PRES. DISCPL Y PENAL
F183: CON PRES. INCID. PENAL
F184: CON PRES. INC. PENAL Y DISCIPLINARIA
F185: CON PRES. INC. DISCIPLINARIA
F186: ADMINISTRATIVO
B189: Sujeto de Control | D189: Sectoriales | F189: PROCESO
B190: Aguas de Bogotá S.A. E.S.P | D190: DIRECCIÓN DE PARTICIPACIÓN CIUDADANA Y DESARROLLO LOCAL
B191: Americas Business Process Services S.A. | D191: DIRECCIÓN SECTOR MOVILIDAD | F191: Estados Financieros
B192: Caja de Vivienda Popular - CVP | D192: DIRECCIÓN SECTOR GESTIÓN JURIDICA | F192: Desempeño Financiero
B193: Canal Capital | D193: DIRECCIÓN SECTOR SALUD | F193: Presupuesto de Ingresos
B194: Capital Salud. Entidad Promotora de Salud del Régimen Subsidiado S.A.S. - Capital Salud EPS-S S.A.S. | D194: DIRECCIÓN SECTOR GOBIERNO | F194: Presupuesto de Gastos
B195: Caudales de Colombia S.A. E.S.P | D195: DIRECCIÓN SECTOR EQUIDAD Y GÉNERO | F195: Planes y Proyectos
B196: Compañía de Distribución y Comercialización de Energía S.A. ESP. CODENSA S.A. ESP. | D196: DIRECCIÓN SECTOR HÁBITAT Y AMBIENTE | F196: Gasto Público
B197: Compañía de Servicios de Valor Agregado y Telemático S.A. ESP - COLVATEL S.A. ESP | D197: DIRECCIÓN SECTOR EDUCACIÓN
B198: Concejo de Bogotá, D.C. | D198: DIRECCIÓN SECTOR HACIENDA
B199: Corporación MALOKA de Ciencia, Tecnología e Innovación - MALOKA | D199: DIRECCIÓN SECTOR DESARROLLO ECONÓMICO, INDUSTRIA Y TURISMO | F199: Limitación en el Alcance
B200: Corporación para el desarrollo y la productividad Bogotá-Región - INVEST IN BOGOTÁ. | D200: DIRECCIÓN SECTOR INTEGRACIÓN SOCIAL | F200: No
B201: Curaduría Urbana No. 1 de Bogotá | D201: DIRECCIÓN SECTOR SERVICIOS PÚBLICOS | F201: Si
B202: Curaduría Urbana No. 2 de Bogotá | D202: DIRECCIÓN SECTOR CULTURA, RECREACIÓN Y DEPORTE
B203: Curaduría Urbana No. 3 de Bogotá | D203: DIRECCIÓN SECTOR SEGURIDAD, CONVIVENCIA Y JUSTICIA | F203: Resumen de Diferencias
B204: Curaduría Urbana No. 4 de Bogotá | F204: Si
B205: Curaduría Urbana No. 5 de Bogotá | F205: No
B206: Departamento Administrativo de la Defensoría del Espacio Público – DADEP
B207: Departamento Administrativo del Servicio Civil Distrital - DASCD
B208: Empresa de Acueducto, Alcantarillado de Bogotá, EAAB - E.S.P.
B209: Empresa de Renovación y Desarrollo Urbano de Bogotá D.C - ERU
B210: Empresa de Telecomunicaciones de Bogotá S.A. E.S.P. -ETB
B211: Empresa de Transporte del Tercer Milenio - Transmilenio S.A.
B212: Empresa Generadora de Energía S.A., E.S.P.- EMGESA S.A. E.S.P.
B213: Entidad de Gestión Administrativa y Técnica - EGAT
B214: Fondo de Desarrollo Local Antonio Nariño
B215: Fondo de Desarrollo Local de Barrios Unidos
B216: Fondo de Desarrollo Local de Bosa
B217: Fondo de Desarrollo Local de Chapinero
B218: Fondo de Desarrollo Local de Ciudad Bolivar
B219: Fondo de Desarrollo Local de Engativá
B220: Fondo de Desarrollo Local de Fontibón
B221: Fondo de Desarrollo Local de Kennedy
B222: Fondo de Desarrollo Local de San Cristobal
B223: Fondo de Desarrollo Local de Santafe
B224: Fondo de Desarrollo Local de Suba
B225: Fondo de Desarrollo Local de Sumapaz
B226: Fondo de Desarrollo Local de Teusaquillo
B227: Fondo de Desarrollo Local de Tunjuelito
B228: Fondo de Desarrollo Local de Usaquén
B229: Fondo de Desarrollo Local de Usme
B230: Fondo de Desarrollo Local la Candelaria
B231: Fondo de Desarrollo Local los Mártires
B232: Fondo de Desarrollo Local Puente Aranda
B233: Fondo de Desarrollo Local Rafael Uribe
B234: Fondo de Prestaciones Económicas, Cesantías y Pensiones - FONCEP
B235: Fondo Disitrital para la Gestión de Riesgos y Cambio Climático de Bogotá D.C. - FONDIGER
B236: Fondo Financiero Distrital de Salud - FFDS
B237: Fundación Gilberto Alzate Avendaño - FUGA
B238: Grupo Energia de Bogotá S.A. E.S.P. GEB S.A. E.S.P.
B239: Instituto de Desarrollo Urbano - IDU
B240: Instituto Distrital de Ciencia, Biotecnología e Innovación en Salud - IDCBIS
B241: Instituto Distrital de Gestión del Riesgo y Cambio Climático - IDIGER
B242: Instituto Distrital de las Artes - IDARTES
B243: Instituto Distrital de Participación y Acción Comunal - IDPAC
B244: Instituto Distrital de Patrimonio Cultural - IDPC
B245: Instituto Distrital de Protección y Bienestar Animal - IDPYBA
B246: Instituto Distrital de Recreación y Deporte - IDRD
B247: Instituto Distrital de Turismo-IDT
B248: Instituto para la Economía Social - IPES
B249: Instituto para la Investigación Educativa y el Desarrollo Pedagógico - IDEP
B250: Instituto para la Protección de la Niñez y la Juventud - IDIPRON
B251: Jardín Botánico José Celestino Mutis - JBJCM
B252: Lotería de Bogotá
B253: Metro de Bogotá S.A.
B254: Orquesta Filarmónica de Bogotá - OFB
B255: Personería de Bogotá
B256: Secretaria de Educación Distrital - SED
B257: Secretaría Distrital de Ambiente – SDA
B258: Secretaría Distrital de Cultura, Recreación y Deporte - SDCRD
B259: Secretaría Distrital de Desarrollo Económico-SDDE
B260: Secretaría Distrital de Gobierno - SDG
B261: Secretaría Distrital de Hacienda - SDH
B262: Secretaría Distrital de Integración Social - SDIS
B263: Secretaría Distrital de la Mujer - SDM
B264: Secretaría Distrital de Movilidad - SDM
B265: Secretaría Distrital de Planeación - SDP
B266: Secretaría Distrital de Salud - SDS
B267: Secretaria Distrital de Seguridad, Convivencia y Justicia - SDSCJ
B268: Secretaría Distrital del Hábitat - SDHT
B269: Secretaría General de la Alcaldía Mayor de Bogotá, D.C. -SGAMB
B270: Secretaría Jurídica Distrital -SJD
B271: SKYNET de Colombia S.A. ESP
B272: Subred Integrada de Servicios de Salud Centro Oriente E.S.E.
B273: Subred Integrada de Servicios de Salud Norte E.S.E.
B274: Subred Integrada de Servicios de Salud Sur E.S.E.
B275: Subred Integrada de Servicios de Salud Sur Occidente E.S.E.
B276: Terminal de Transporte S.A.
B277: Trasportadora de Gas Internacional S.A. ESP. - TGI S.A. ESP
B278: Unidad Administrativa Especial Cuerpo Oficial de Bomberos - UAECOB
B279: Unidad Administrativa Especial de Catastro Distrital - UAECD
B280: Unidad Administrativa Especial de Rehabilitación y Mantenimiento Vial - UAERMV
B281: Unidad Administrativa Especial de Servicios Públicos - UAESP
B282: Universidad Distrital Francisco José de Caldas - UDFJC
B283: Vanti S.A. E.S.P.
B284: Veeduría Distrital
